fUST/lending_fUST_20260106
["ID","MTS","AMOUNT","RATE_DAILY","PERIOD"]
[400490170,1767660443481,161.0,0.000301,120]
[400490188,1767660637440,-297.86,9.3e-05,2]
[400490189,1767660637450,-306.20627327,9.4e-05,2]
[400490190,1767660637460,-297.86,9.7e-05,2]
[400490193,1767660637469,-297.86,0.000101,2]
[400490195,1767660637640,-297.86,0.000106,2]
[400490197,1767660637651,-300.0,0.00010674,2]
[400490199,1767660637660,-300.0,0.00010674,2]
[400490201,1767660637670,-504.40372673,0.00010675,2]
[400490203,1767660637681,-589.59627327,0.00010675,2]
[400490205,1767660637691,-1113.07789097,0.00010676,2]
[400490207,1767660637700,-1200.0,0.00010676,2]
[400490209,1767660637710,-300.0,0.00010677,2]
[400490211,1767660637719,-300.0,0.00010677,2]
[400490212,1767660637728,-300.0,0.00010677,2]
[400490213,1767660637737,-300.0,0.00010677,2]
[400490214,1767660637747,-300.0,0.00010677,2]
[400490215,1767660637756,-300.0,0.00010677,2]
[400490216,1767660637765,-300.0,0.00010677,2]
[400490217,1767660637775,-300.0,0.00010677,2]
[400490218,1767660637784,-300.0,0.00010677,2]
[400490219,1767660637794,-300.0,0.00010677,2]
[400490220,1767660637803,-300.0,0.00010677,2]
[400490221,1767660637814,-300.0,0.00010677,2]
[400490222,1767660637824,-300.0,0.00010677,2]
[400490223,1767660637834,-300.0,0.00010677,2]
[400490224,1767660637843,-300.0,0.00010677,2]
[400490225,1767660637851,-297.86,0.00011,2]
[400490226,1767660637860,-900.5466405,0.0001107,2]
[400490227,1767660637869,-600.0,0.00011247,2]
[400490228,1767660637879,-361.32340246,0.000114,2]
[400490229,1767660637888,-297.86,0.000114,2]
[400490230,1767660637897,-420.0,0.00011733,2]
[400490231,1767660637906,-1680.0,0.00011744,2]
[400490232,1767660637915,-297.86,0.000118,2]
[400490233,1767660637924,-2076.15578194,0.00012103,2]
[400490234,1767660637934,-297.86,0.000123,2]
[400490235,1767660637943,-720.0,0.00012371,2]
[400490236,1767660637953,-272.8580354,0.00012421,2]
[400490237,1767660637961,-500.0,0.00012618,2]
[400490238,1767660637970,-500.0,0.00012618,2]
[400490239,1767660637980,-500.0,0.00012618,2]
[400490241,1767660637990,-500.0,0.00012618,2]
[400490242,1767660638000,-454.12474208,0.00012618,2]
[400490244,1767660638010,-317.72882775,0.00012618,2]
[400490246,1767660638020,-261.12130145,0.00012618,2]
[400490248,1767660638030,-71.38710418,0.000127,2]
[400490250,1767660638043,-226.47289582,0.000127,2]
[400490252,1767660638052,-477.24532471,0.00012898,2]
[400490258,1767660638103,-109.75467529,0.00012898,2]
[400490260,1767660638113,-196.271,0.00012918,2]
[400490262,1767660638123,-2351.0,0.00012918,2]
[400490264,1767660638135,-500.0,0.00012999,2]
[400490266,1767660638145,-297.86,0.000131,2]
[400490268,1767660638155,-500.0,0.00013136,2]
[400490270,1767660638165,-169.47157129,0.00013136,2]
[400490272,1767660638176,-500.0,0.00013273,2]
[400490274,1767660638186,-283.56725254,0.00013273,2]
[400490276,1767660638196,-500.0,0.00013273,2]
[400490278,1767660638206,-500.0,0.00013273,2]
[400490280,1767660638216,-500.0,0.00013273,2]
[400490282,1767660638226,-500.0,0.00013273,2]
[400490285,1767660638238,-519.21125706,0.00013273,2]
[400490287,1767660638247,-500.0,0.00013273,2]
[400490288,1767660638257,-500.0,0.00013273,2]
[400490290,1767660638267,-465.35115233,0.00013273,2]
[400490293,1767660638277,-500.0,0.00013273,2]
[400490295,1767660638287,-500.0,0.00013273,2]
[400490297,1767660638297,-500.0,0.00013273,2]
[400490299,1767660638307,-500.0,0.00013273,2]
[400490301,1767660638316,-500.0,0.00013273,2]
[400490303,1767660638325,-500.0,0.00013273,2]
[400490305,1767660638335,-500.0,0.00013273,2]
[400490307,1767660638344,-500.0,0.00013273,2]
[400490308,1767660638353,-500.0,0.00013273,2]
[400490310,1767660638363,-500.0,0.00013273,2]
[400490312,1767660638372,-500.0,0.00013273,2]
[400490314,1767660638382,-500.0,0.00013273,2]
[400490316,1767660638392,-500.0,0.00013273,2]
[400490318,1767660638403,-500.0,0.00013273,2]
[400490320,1767660638412,-500.0,0.00013273,2]
[400490322,1767660638421,-500.0,0.00013273,2]
[400490324,1767660638431,-500.0,0.00013273,2]
[400490327,1767660638442,-500.0,0.00013273,2]
[400490328,1767660638451,-500.0,0.00013273,2]
[400490331,1767660638461,-500.0,0.00013273,2]
[400490333,1767660638470,-416.44053164,0.000134,2]
[400490335,1767660638479,-192.37511605,0.0001341,2]
[400490337,1767660638488,-500.0,0.0001347,2]
[400490339,1767660638498,-305.64105136,0.0001347,2]
[400490341,1767660638507,-500.0,0.0001347,2]
[400490342,1767660638515,-500.0,0.0001347,2]
[400490344,1767660638524,-500.0,0.0001347,2]
[400490347,1767660638535,-500.0,0.0001347,2]
[400490349,1767660638545,-500.0,0.0001347,2]
[400490351,1767660638554,-465.3715483,0.0001347,2]
[400490353,1767660638564,-500.0,0.0001347,2]
[400490355,1767660638573,-500.0,0.0001347,2]
[400490357,1767660638585,-500.0,0.0001347,2]
[400490359,1767660638595,-500.0,0.0001347,2]
[400490361,1767660638604,-500.0,0.0001347,2]
[400490363,1767660638614,-500.0,0.0001347,2]
[400490365,1767660638623,-500.0,0.0001347,2]
[400490367,1767660638633,-500.0,0.0001347,2]
[400490369,1767660638643,-500.0,0.0001347,2]
[400490371,1767660638652,-500.0,0.0001347,2]
[400490373,1767660638661,-184.15152688,0.0001347,2]
[400490375,1767660638670,-500.0,0.0001347,2]
[400490377,1767660638679,-1365.0,0.00013475,2]
[400490379,1767660638688,-628.0,0.00013475,2]
[400490381,1767660638697,-151.0,0.000135,2]
[400490383,1767660638707,-151.0,0.000135,2]
[400490385,1767660638716,-151.0,0.000135,2]
[400490387,1767660638725,-297.86,0.000135,2]
[400490389,1767660638735,-151.0,0.00013521,2]
[400490391,1767660638746,-154.59765388,0.00013521,2]
[400490393,1767660638756,-3039.23367292,0.0001353,2]
[400490394,1767660638765,-10000.0,0.00013599,2]
[400490396,1767660638775,-1000000.0,0.00013599,2]
[400490398,1767660638784,-151.0,0.000136,2]
[400490400,1767660638794,-151.0,0.000136,2]
[400490402,1767660638804,-151.0,0.000136,2]
[400490404,1767660638814,-151.0,0.000136,2]
[400490406,1767660638823,-864.0,0.00013608,2]
[400490409,1767660638833,-300.0,0.00013673,2]
[400490410,1767660638843,-17365.6898596,0.00013699,2]
[400490412,1767660638852,-1007.182489,0.00013699,2]
[400490414,1767660638863,-2762.238736,0.00013699,2]
[400490416,1767660638872,-500.0,0.00013699,2]
[400490418,1767660638882,-500.0,0.00013699,2]
[400490420,1767660638892,-500.0,0.00013699,2]
[400490422,1767660638902,-500.0,0.00013699,2]
[400490424,1767660638911,-500.0,0.00013699,2]
[400490426,1767660638920,-500.0,0.00013699,2]
[400490428,1767660638930,-500.0,0.00013699,2]
[400490430,1767660638939,-500.0,0.00013699,2]
[400490432,1767660638950,-369.20868166,0.00013699,2]
[400490434,1767660638959,-500.0,0.00013699,2]
[400490436,1767660638968,-500.0,0.00013699,2]
[400490438,1767660638978,-500.0,0.00013699,2]
[400490440,1767660638988,-500.0,0.00013699,2]
[400490442,1767660638998,-500.0,0.00013699,2]
[400490444,1767660639007,-500.0,0.00013699,2]
[400490446,1767660639017,-500.0,0.00013699,2]
[400490448,1767660639027,-500.0,0.00013699,2]
[400490450,1767660639037,-500.0,0.00013699,2]
[400490452,1767660639047,-500.0,0.00013699,2]
[400490454,1767660639057,-500.0,0.00013699,2]
[400490456,1767660639067,-500.0,0.00013699,2]
[400490458,1767660639076,-500.0,0.00013699,2]
[400490460,1767660639086,-500.0,0.00013699,2]
[400490462,1767660639098,-500.0,0.00013699,2]
[400490464,1767660639107,-500.0,0.00013699,2]
[400490466,1767660639116,-500.0,0.00013699,2]
[400490468,1767660639126,-500.0,0.00013699,2]
[400490470,1767660639136,-500.0,0.00013699,2]
[400490472,1767660639145,-500.0,0.00013699,2]
[400490474,1767660639155,-500.0,0.00013699,2]
[400490476,1767660639164,-500.0,0.00013699,2]
[400490478,1767660639176,-500.0,0.00013699,2]
[400490480,1767660639185,-500.0,0.00013699,2]
[400490482,1767660639194,-500.0,0.00013699,2]
[400490484,1767660639204,-267.6781502,0.00013699,2]
[400490486,1767660639214,-500.0,0.00013699,2]
[400490488,1767660639223,-443.0912917,0.00013699,2]
[400490490,1767660639232,-500.0,0.00013699,2]
[400490492,1767660639241,-500.0,0.00013699,2]
[400490494,1767660639251,-500.7533204,0.00013699,2]
[400490496,1767660639260,-500.0,0.00013699,2]
[400490498,1767660639270,-441.27132624,0.00013699,2]
[400490500,1767660639279,-500.0,0.00013699,2]
[400490502,1767660639289,-500.0,0.00013699,2]
[400490504,1767660639302,-500.0,0.00013699,2]
[400490506,1767660639312,-500.0,0.00013699,2]
[400490508,1767660639322,-500.0,0.00013699,2]
[400490510,1767660639331,-500.0,0.00013699,2]
[400490512,1767660639340,-500.0,0.00013699,2]
[400490514,1767660639350,-500.0,0.00013699,2]
[400490516,1767660639359,-500.0,0.00013699,2]
[400490518,1767660639369,-500.0,0.00013699,2]
[400490520,1767660639378,-500.0,0.00013699,2]
[400490522,1767660639387,-500.0,0.00013699,2]
[400490524,1767660639396,-500.0,0.00013699,2]
[400490526,1767660639406,-500.0,0.00013699,2]
[400490527,1767660639415,-500.0,0.00013699,2]
[400490529,1767660639424,-500.0,0.00013699,2]
[400490531,1767660639433,-524.36073826,0.00013699,2]
[400490533,1767660639442,-500.0,0.00013699,2]
[400490535,1767660639451,-157.83137815,0.00013699,2]
[400490537,1767660639460,-500.0,0.00013699,2]
[400490539,1767660639470,-500.0,0.00013699,2]
[400490542,1767660639479,-310.09338891,0.00013699,2]
[400490544,1767660639488,-500.0,0.00013699,2]
[400490546,1767660639498,-500.0,0.00013699,2]
[400490548,1767660639507,-500.0,0.00013699,2]
[400490550,1767660639516,-295.43360933,0.00013699,2]
[400490552,1767660639526,-500.0,0.00013699,2]
[400490554,1767660639535,-1041.66666667,0.00013783,2]
[400490556,1767660639544,-1000.0,0.00013821,2]
[400490558,1767660639553,-1000.0,0.00013821,2]
[400490560,1767660639562,-218.57573432,0.00013821,2]
[400490562,1767660639575,-781.42426568,0.00013821,2]
[400490564,1767660639584,-1000.0,0.00013821,2]
[400490567,1767660639593,-1000.0,0.00013821,2]
[400490569,1767660639603,-592.11494737,0.00013821,2]
[400490684,1767660646147,-807.42,0.00012329,2]
[400490685,1767660646158,-72948.79098443,0.00012521,2]
[400490686,1767660646175,-2333.30832509,0.00012521,2]
[400490687,1767660646197,-567.31286854,0.00012521,2]
[400490689,1767660788361,500.0,0.00030136,120]
[400490690,1767660788592,500.0,0.00030136,120]
[400490691,1767660788822,500.0,0.00030136,120]
[400490692,1767660789095,500.0,0.00030136,120]
[400490693,1767660789734,500.0,0.00030136,120]
[400490694,1767660790001,500.0,0.00030136,120]
[400490695,1767660790234,500.0,0.00030136,120]
[400490696,1767660790479,500.0,0.00030136,120]
[400490697,1767660790722,500.0,0.00030136,120]
[400490698,1767660790966,497.00020001,0.00030136,120]
[400490700,1767661029459,416.30186102,0.00030136,120]
[400490741,1767661831981,-208.90254637,9.3e-05,2]
[400490742,1767661831991,-342.25191724,9.3e-05,2]
[400490748,1767661832040,-207.74808276,9.3e-05,2]
[400490749,1767661832050,-310.73158405,9.35e-05,2]
[400490750,1767661832059,-250.0,0.00010661,2]
[400490751,1767661832069,-366.66326918,0.0001135,2]
[400490752,1767661832078,-1133.39471036,0.00011399,2]
[400490753,1767661832089,-211.0,0.00011625,2]
[400490754,1767661832099,-300.0,0.00011625,2]
[400490755,1767661832110,-1200.0,0.00011626,2]
[400490756,1767661832120,-300.0,0.00011626,2]
[400490757,1767661832130,-1200.0,0.00011626,2]
[400490758,1767661832142,-300.0,0.00011627,2]
[400490759,1767661832151,-300.0,0.00011627,2]
[400490760,1767661832161,-300.0,0.00011627,2]
[400490761,1767661832170,-300.0,0.00011627,2]
[400490762,1767661832179,-300.0,0.00011627,2]
[400490763,1767661832190,-300.0,0.00011627,2]
[400490764,1767661832199,-300.0,0.00011627,2]
[400490765,1767661832208,-300.0,0.00011627,2]
[400490766,1767661832217,-300.0,0.00011627,2]
[400490767,1767661832227,-300.0,0.00011627,2]
[400490768,1767661832236,-300.0,0.00011627,2]
[400490769,1767661832246,-300.0,0.00011627,2]
[400490770,1767661832256,-300.0,0.00011627,2]
[400490771,1767661832266,-300.0,0.00011627,2]
[400490772,1767661832276,-300.0,0.00011627,2]
[400490773,1767661832285,-600.0,0.00011859,2]
[400490774,1767661832295,-157.017,0.00012271,2]
[400490775,1767661832307,-151.0,0.000124,2]
[400490776,1767661832316,-151.0,0.000124,2]
[400490777,1767661832326,-151.0,0.000124,2]
[400490778,1767661832336,-371.20697706,0.00012418,2]
[400490779,1767661832345,-500.0,0.00012419,2]
[400490780,1767661832355,-410.65957114,0.00012419,2]
[400490781,1767661832365,-584.38809447,0.00012419,2]
[400490782,1767661832374,-582.84570316,0.00012419,2]
[400490783,1767661832383,-584.38809447,0.00012419,2]
[400490784,1767661832393,-584.38809447,0.00012419,2]
[400490785,1767661832402,-584.38809447,0.00012419,2]
[400490786,1767661832415,-584.38809447,0.00012419,2]
[400490787,1767661832425,-584.38809447,0.00012419,2]
[400490788,1767661832434,-584.38809447,0.00012419,2]
[400490789,1767661832444,-584.38809447,0.00012419,2]
[400490790,1767661832454,-584.38809447,0.00012419,2]
[400490791,1767661832463,-584.38809447,0.00012419,2]
[400490792,1767661832474,-500.0,0.00012419,2]
[400490793,1767661832483,-584.38809447,0.00012419,2]
[400490794,1767661832494,-500.0,0.00012419,2]
[400490795,1767661832506,-500.0,0.00012419,2]
[400490796,1767661832515,-584.38809447,0.00012419,2]
[400490797,1767661832525,-584.38809447,0.00012419,2]
[400490798,1767661832535,-584.38809447,0.00012419,2]
[400490799,1767661832544,-584.38809447,0.00012419,2]
[400490800,1767661832553,-584.38809447,0.00012419,2]
[400490801,1767661832563,-603.86769762,0.00012419,2]
[400490802,1767661832572,-603.86769762,0.00012419,2]
[400490803,1767661832581,-603.86769762,0.00012419,2]
[400490804,1767661832590,-603.86769762,0.00012419,2]
[400490805,1767661832599,-603.86769762,0.00012419,2]
[400490806,1767661832608,-603.86769762,0.00012419,2]
[400490807,1767661832617,-603.86769762,0.00012419,2]
[400490808,1767661832626,-603.86769762,0.00012419,2]
[400490809,1767661832635,-603.86769762,0.00012419,2]
[400490810,1767661832645,-1675.88415796,0.0001242,2]
[400490811,1767661832668,-47315.43361739,0.0001242,2]
[400490838,1767661838094,-232.33,9.3e-05,2]
[400490840,1767661838105,-58.970155,9.7e-05,2]
[400490851,1767661838207,-173.359845,9.7e-05,2]
[400490853,1767661838216,-232.33,0.000101,2]
[400490855,1767661838226,-232.33,0.000106,2]
[400490857,1767661838235,-951008.68222465,0.0001242,2]
[400490859,1767661838245,-3389.1038821,0.000126,2]
[400490861,1767661838255,-420.0,0.00012767,2]
[400490863,1767661838264,-1680.0,0.00012789,2]
[400490865,1767661838274,-2116.78942072,0.00012801,2]
[400490867,1767661838284,-89636.7035225,0.00012813,2]
[400490869,1767661838293,-1959.884126,0.00012813,2]
[400490871,1767661838303,-3607.7774341,0.00012813,2]
[400490873,1767661838313,-5135.25279447,0.0001287,2]
[400490875,1767661838322,-720.0,0.00013044,2]
[400490877,1767661838332,-151.0,0.000132,2]
[400490879,1767661838342,-500.0,0.00013273,2]
[400490882,1767661838359,-500.0,0.00013273,2]
[400490883,1767661838378,-500.0,0.00013273,2]
[400490885,1767661838387,-500.0,0.00013273,2]
[400490887,1767661838397,-500.0,0.00013273,2]
[400490889,1767661838409,-500.0,0.00013273,2]
[400490891,1767661838419,-500.0,0.00013273,2]
[400490893,1767661838429,-500.0,0.00013273,2]
[400490896,1767661838439,-500.0,0.00013273,2]
[400490898,1767661838450,-500.0,0.00013273,2]
[400490900,1767661838460,-196.20087533,0.00013273,2]
[400490902,1767661838470,-500.0,0.00013273,2]
[400490904,1767661838480,-500.0,0.00013273,2]
[400490906,1767661838489,-500.0,0.00013273,2]
[400490908,1767661838498,-500.0,0.00013273,2]
[400490909,1767661838508,-500.0,0.00013273,2]
[400490911,1767661838518,-500.0,0.00013273,2]
[400490913,1767661838527,-500.0,0.00013273,2]
[400490915,1767661838536,-500.0,0.00013273,2]
[400490918,1767661838545,-500.0,0.00013273,2]
[400490919,1767661838555,-500.0,0.00013273,2]
[400490921,1767661838564,-602.47879957,0.00013273,2]
[400490923,1767661838574,-500.0,0.00013273,2]
[400490925,1767661838584,-186.16786472,0.00013273,2]
[400490927,1767661838593,-500.0,0.00013273,2]
[400490929,1767661838603,-500.0,0.00013273,2]
[400490931,1767661838614,-500.0,0.00013273,2]
[400490934,1767661838624,-500.0,0.00013273,2]
[400490935,1767661838633,-500.0,0.00013273,2]
[400490937,1767661838642,-500.0,0.00013273,2]
[400490939,1767661838652,-500.0,0.00013273,2]
[400490942,1767661838661,-500.0,0.00013273,2]
[400490943,1767661838671,-500.0,0.00013273,2]
[400490945,1767661838680,-500.0,0.00013273,2]
[400490947,1767661838689,-500.56050468,0.00013273,2]
[400490950,1767661838700,-500.0,0.00013273,2]
[400490952,1767661838709,-500.0,0.00013273,2]
[400490954,1767661838718,-151.0,0.000133,2]
[400490956,1767661838727,-422.5949543,0.0001335,2]
[400490958,1767661838736,-2145.0,0.00013475,2]
[400490960,1767661838745,-1365.0,0.00013475,2]
[400490962,1767661838755,-628.0,0.00013475,2]
[400490964,1767661838765,-151.0,0.000135,2]
[400490965,1767661838773,-151.85,0.000135,2]
[400490968,1767661838783,-151.0,0.000136,2]
[400490970,1767661838792,-2384.62777189,0.00013624,2]
[400490972,1767661838801,-300.0,0.00013673,2]
[400490974,1767661838811,-500.0,0.00013698,2]
[400490975,1767661838819,-500.0,0.00013698,2]
[400490978,1767661838829,-500.0,0.00013698,2]
[400490979,1767661838838,-500.0,0.00013698,2]
[400490981,1767661838854,-500.0,0.00013698,2]
[400490983,1767661838863,-500.0,0.00013698,2]
[400490985,1767661838872,-458.86833984,0.00013698,2]
[400490987,1767661838881,-664.09,0.00013698,2]
[400490989,1767661838890,-664.09,0.00013698,2]
[400490991,1767661838899,-664.09,0.00013698,2]
[400490993,1767661838908,-664.09,0.00013698,2]
[400490995,1767661838917,-664.09,0.00013698,2]
[400490997,1767661838926,-664.09,0.00013698,2]
[400490999,1767661838935,-664.09,0.00013698,2]
[400491002,1767661838945,-664.09,0.00013698,2]
[400491003,1767661838954,-664.09,0.00013698,2]
[400491005,1767661838964,-664.09,0.00013698,2]
[400491008,1767661838973,-664.09,0.00013698,2]
[400491010,1767661838982,-664.09,0.00013698,2]
[400491011,1767661838991,-664.09,0.00013698,2]
[400491013,1767661839001,-664.09,0.00013698,2]
[400491015,1767661839011,-664.09,0.00013698,2]
[400491017,1767661839020,-664.09,0.00013698,2]
[400491019,1767661839031,-664.09,0.00013698,2]
[400491021,1767661839041,-664.09,0.00013698,2]
[400491023,1767661839057,-664.09,0.00013698,2]
[400491025,1767661839068,-664.09,0.00013698,2]
[400491027,1767661839077,-664.09,0.00013698,2]
[400491029,1767661839087,-664.09,0.00013698,2]
[400491031,1767661839096,-664.09,0.00013698,2]
[400491033,1767661839106,-664.12963229,0.00013698,2]
[400491035,1767661839116,-3265.24,0.00013698,2]
[400491037,1767661839126,-3265.24,0.00013698,2]
[400491039,1767661839135,-3265.24,0.00013698,2]
[400491041,1767661839145,-3265.24,0.00013698,2]
[400491043,1767661839154,-3265.24,0.00013698,2]
[400491045,1767661839163,-3265.24,0.00013698,2]
[400491047,1767661839173,-3265.24,0.00013698,2]
[400491050,1767661839183,-3265.24,0.00013698,2]
[400491052,1767661839193,-3265.24,0.00013698,2]
[400491054,1767661839203,-3265.24,0.00013698,2]
[400491055,1767661839213,-3265.24,0.00013698,2]
[400491057,1767661839223,-3265.24,0.00013698,2]
[400491059,1767661839233,-3265.24,0.00013698,2]
[400491062,1767661839243,-3265.24,0.00013698,2]
[400491064,1767661839252,-3265.24,0.00013698,2]
[400491065,1767661839262,-3265.24,0.00013698,2]
[400491067,1767661839272,-3265.24,0.00013698,2]
[400491069,1767661839282,-3265.24,0.00013698,2]
[400491071,1767661839294,-3265.24,0.00013698,2]
[400491074,1767661839314,-3265.24,0.00013698,2]
[400491075,1767661839324,-3265.24,0.00013698,2]
[400491077,1767661839334,-3265.24,0.00013698,2]
[400491080,1767661839344,-3265.24,0.00013698,2]
[400491082,1767661839354,-3265.46820115,0.00013698,2]
[400491084,1767661839364,-500.0,0.00013698,2]
[400491086,1767661839374,-500.0,0.00013698,2]
[400491088,1767661839384,-500.0,0.00013698,2]
[400491090,1767661839393,-500.0,0.00013698,2]
[400491091,1767661839405,-500.0,0.00013698,2]
[400491093,1767661839416,-500.0,0.00013698,2]
[400491096,1767661839426,-500.0,0.00013698,2]
[400491098,1767661839436,-500.0,0.00013698,2]
[400491099,1767661839447,-500.0,0.00013698,2]
[400491102,1767661839457,-606.67185424,0.00013698,2]
[400491104,1767661839467,-500.0,0.00013698,2]
[400491106,1767661839478,-500.0,0.00013698,2]
[400491108,1767661839487,-500.0,0.00013698,2]
[400491110,1767661839497,-500.0,0.00013698,2]
[400491112,1767661839506,-500.0,0.00013698,2]
[400491113,1767661839515,-500.0,0.00013698,2]
[400491115,1767661839525,-500.0,0.00013698,2]
[400491117,1767661839535,-500.0,0.00013698,2]
[400491119,1767661839545,-500.0,0.00013698,2]
[400491121,1767661839555,-500.0,0.00013698,2]
[400491123,1767661839565,-500.0,0.00013698,2]
[400491126,1767661839575,-500.0,0.00013698,2]
[400491128,1767661839585,-500.0,0.00013698,2]
[400491129,1767661839595,-500.0,0.00013698,2]
[400491132,1767661839604,-500.0,0.00013698,2]
[400491135,1767661839614,-500.0,0.00013698,2]
[400491137,1767661839623,-500.0,0.00013698,2]
[400491160,1767661839776,-500.0,0.00013698,2]
[400491162,1767661839786,-500.0,0.00013698,2]
[400491164,1767661839795,-235.6611212,0.00013698,2]
[400491166,1767661839806,-512.5908505,0.00013698,2]
[400491168,1767661839815,-566.95004907,0.00013698,2]
[400491170,1767661839824,-500.0,0.00013698,2]
[400491172,1767661839833,-500.0,0.00013698,2]
[400491174,1767661839843,-434.45911779,0.00013698,2]
[400491176,1767661839853,-204.01,0.00013698,2]
[400491178,1767661839862,-500.0,0.00013698,2]
[400491180,1767661839872,-500.0,0.00013698,2]
[400491182,1767661839881,-500.0,0.00013698,2]
[400491184,1767661839890,-500.0,0.00013698,2]
[400491185,1767661839900,-500.0,0.00013698,2]
[400491187,1767661839910,-561.43659338,0.00013698,2]
[400491189,1767661839919,-1942.5,0.00013698,2]
[400491190,1767661839929,-1942.5,0.00013698,2]
[400491191,1767661839938,-1942.5,0.00013698,2]
[400491193,1767661839948,-1942.5,0.00013698,2]
[400491194,1767661839957,-1942.5,0.00013698,2]
[400491195,1767661839967,-1942.5,0.00013698,2]
[400491196,1767661839977,-1942.5,0.00013698,2]
[400491197,1767661839987,-1942.5,0.00013698,2]
[400491198,1767661839997,-1942.5,0.00013698,2]
[400491199,1767661840007,-1942.5,0.00013698,2]
[400491200,1767661840016,-1942.5,0.00013698,2]
[400491201,1767661840026,-1942.5,0.00013698,2]
[400491202,1767661840035,-1942.5,0.00013698,2]
[400491203,1767661840045,-1942.5,0.00013698,2]
[400491204,1767661840055,-1942.5,0.00013698,2]
[400491205,1767661840064,-1942.5,0.00013698,2]
[400491207,1767661840073,-1942.5,0.00013698,2]
[400491208,1767661840083,-1942.5,0.00013698,2]
[400491209,1767661840092,-1942.5,0.00013698,2]
[400491210,1767661840101,-1942.5,0.00013698,2]
[400491211,1767661840110,-1942.5,0.00013698,2]
[400491212,1767661840119,-1942.5,0.00013698,2]
[400491213,1767661840128,-1942.5,0.00013698,2]
[400491214,1767661840137,-1942.52772787,0.00013698,2]
[400491215,1767661840146,-500.0,0.00013698,2]
[400491216,1767661840156,-500.0,0.00013698,2]
[400491217,1767661840165,-500.0,0.00013698,2]
[400491218,1767661840174,-500.0,0.00013698,2]
[400491219,1767661840183,-500.0,0.00013698,2]
[400491220,1767661840191,-500.0,0.00013698,2]
[400491221,1767661840202,-500.0,0.00013698,2]
[400491222,1767661840211,-500.0,0.00013698,2]
[400491223,1767661840219,-500.0,0.00013698,2]
[400491224,1767661840229,-171.4347321,0.00013698,2]
[400491225,1767661840238,-566.12,0.00013698,2]
[400491226,1767661840247,-566.12,0.00013698,2]
[400491227,1767661840255,-566.12,0.00013698,2]
[400491228,1767661840265,-566.12,0.00013698,2]
[400491230,1767661840275,-566.12,0.00013698,2]
[400491231,1767661840286,-1000.0,0.00013699,2]
[400491233,1767661840295,-36355.5821185,0.00013699,2]
[400491234,1767661840306,-2944.4597867,0.00013699,2]
[400491235,1767661840315,-160.25706,0.00013699,2]
[400491236,1767661840325,-500.0,0.00013699,2]
[400491237,1767661840335,-500.0,0.00013699,2]
[400491238,1767661840345,-184.8619636,0.00013699,2]
[400491239,1767661840355,-500.0,0.00013699,2]
[400491240,1767661840365,-500.0,0.00013699,2]
[400491241,1767661840375,-346.68143655,0.00013699,2]
[400491242,1767661840384,-243.03449351,0.00013699,2]
[400491243,1767661840395,-500.0,0.00013699,2]
[400491244,1767661840404,-500.0,0.00013699,2]
[400491245,1767661840417,-500.0,0.00013699,2]
[400491246,1767661840426,-500.0,0.00013699,2]